Cogmind - Beta 17 @@@ ROGUE MODE // 2026.07.22 @ 00:02:32 Player: kim.jet.wav Result: Destroyed by as-54047 with Assembled Heavy Rifle Performance ------------- Evolutions (0) 0 Regions Visited (0) 0 Robots Destroyed (5) 25 Value Destroyed (35) 35 Prototype IDs (0) 0 Alien Tech Used (0) 0 Bonus (0) 0 TOTAL SCORE: 60 Bonus ------- None Cogmind --------- Core Integrity 0/250 Matter 300/300 Energy 100/100 System Corruption 0% Temperature Cool (0) Movement Core (100) Ox1 Location -11/Scrapyard Parts ------- > --- POWER (1) -------- (None) > --- PROPULSION (2) --- (None) > --- UTILITY (2) ------ Small Storage Unit > --- WEAPON (2) ------- (None) > --- INVENTORY (8) ---- Light Ion Engine Peak State ------------ > --- POWER ------------ Light Ion Engine > --- PROPULSION ------- Aluminum Leg Aluminum Leg > --- UTILITY ---------- Small Storage Unit Seismic Detector > --- WEAPON ----------- EM Pulse Gun Small Laser > --- INVENTORY -------- Light Ion Engine [Rating: 7] Favorites ----------- Power Light Ion Engine Engine Light Ion Engine Propulsion Aluminum Leg Leg Aluminum Leg Utility Small Storage Unit Device Seismic Detector Storage Small Storage Unit Weapon EM Pulse Gun Energy Gun EM Pulse Gun Build | -11 ------- Run | Yrd Slots Evolved . | . Power . | . Propulsion . | . Utility . | . Weapon . | . Parts Attached 7 | 7 Power 1 | 1 Engine 1 | 1 Core . | . Reactor . | . Propulsion 2 | 2 Treads . | . Leg 2 | 2 Wheel . | . Hover . | . Flight . | . Utility 2 | 2 Device 1 | 1 Storage 1 | 1 Processor . | . Hackware . | . Protection . | . Artifact . | . Weapon 2 | 2 Energy Gun 2 | 2 Energy Cannon . | . Ballistic Gun . | . Ballistic Cannon . | . Launcher . | . Special Weapon . | . Impact Weapon . | . Slashing Weapon . | . Piercing Weapon . | . Special Melee Weapon . | . Unidentified Prototypes . | . Parts Lost 6 | 6 Power 1 | 1 Propulsion 2 | 2 Utility 1 | 1 Weapon 2 | 2 Highest Loss Streak 6 | 6 To Critical Strikes 1 | 1 Average Backups . | . Power . | . Propulsion . | . Utility . | . Weapon . | . Tool/Special . | . Unused Backups 1 | 1 Power 1 | 1 Propulsion . | . Utility . | . Weapon . | . Tool/Special . | . Average Slot Usage (%) . | . Peak Build Rating 7 | 7 Average Rating 6 | 6 On Entrance . | . Avg Prop Armor Cover (%) 10 | 10 Naked Turns . | . Heaviest Build 12 | 12 Greatest Support 20 | 20 Greatest Overweight (x) 3 | 3 Average Overweight (x) . | . Largest Inventory Capacity 8 | 8 Average Capacity 7 | 7 Most Carried 2 | 2 Average Carried . | . Final Capacity 8 | 8 Final Carried 1 | 1 Class Distribution -------------------- None Dominant Class ---------------- None Resources | -11 ----------- Run | Yrd Matter Collected 270 | 270 Remotely . | . Salvage Created 108 | 108 Parts 10 | 10 Haulers Intercepted . | . Recyclers Shooed . | . Parts Field Recycled . | . Retrieved Matter . | . Parts Self-Destructed . | . Prevented . | . Parts Restored . | . Kills | -11 ------- Run | Yrd Combat Hostiles Destroyed . | . Classes Destroyed 1 | 1 Tunneler 5 | 5 Best Kill Streak 5 | 5 Combat Bots Only . | . Max Kills in Single Turn 1 | 1 Gunslinging . | . Exploded . | . Melee . | . Uniques/NPCs Destroyed . | . Combat | -11 -------- Run | Yrd Hostile Shots Fired 62 | 62 Missed 17 | 17 Hits 45 | 45 Melee 11 | 11 Projectile 34 | 34 Critical Strikes 1 | 1 Damage Taken 796 | 796 Core 266 | 266 Absorbed by Shields . | . Core Remaining (%) . | . Volleys Fired 14 | 14 Largest 2 | 2 Hottest 80 | 80 Shots Fired 28 | 28 Gun 28 | 28 Cannon . | . Launcher . | . Special . | . Kinetic . | . Thermal 14 | 14 Explosive . | . Electromagnetic 14 | 14 Robot Hit Streak 7 | 7 Robot Miss Streak 2 | 2 Penetration Max . | . Secondary Targets . | . Shots Hit Robots 17 | 17 Core Hits 5 | 5 Critical Kills . | . Critical Parts Destroyed . | . Critical Strikes . | . Melee Attacks . | . Impact . | . Slashing . | . Piercing . | . Sneak Attacks . | . Combat Hostiles . | . Follow-up Attacks . | . Damage Inflicted 231 | 231 Guns 223 | 223 Cannons . | . Explosions . | . Melee . | . Ramming 8 | 8 Kinetic . | . Thermal 88 | 88 Explosive . | . Electromagnetic 135 | 135 Impact . | . Slashing . | . Piercing . | . Highest Corruption . | . Average Corruption . | . Corruption Purged . | . Corruption Blocked . | . Overload Shots . | . Overflow Damage . | . Projectiles . | . Explosions . | . Melee . | . Knockbacks . | . Impact . | . Kinetic . | . Secondary . | . Self-Inflicted Damage . | . Shots . | . Rammed . | . Targets Rammed 1 | 1 Kicked 1 | 1 Crushed . | . Highest Temperature 90 | 90 Average Temperature 40 | 40 Received Heat Transfer . | . Siege Activations . | . Martial Activations . | . Shielding Activations . | . Robots Disrupted . | . Combat Hostiles . | . Robots Corrupted . | . Combat Hostiles . | . Parts Fried 2 | 2 Impact Corruptions . | . Robots Melted . | . Combat Hostiles . | . Parts Melted . | . Heat Transferred 200 | 200 Parts Sabotaged . | . Parts Stolen . | . Parts Stripped . | . Power Chain Reactions . | . Alert | -11 ------- Run | Yrd Maximum Alert Level . | . Low Security (%) 100 | 100 Level 1 . | . Level 2 . | . Level 3 . | . Level 4 . | . Level 5 . | . High Security . | . Max Security . | . Peak Influence 15 | 15 Initial . | . Average . | . Influence Increases 25 | 25 Destroy 0b10 Robot/NC 25 | 25 Influence Decreases 25 | 25 Time Decay 25 | 25 Squads Dispatched . | . Investigation . | . Extermination . | . Reinforcement . | . Assault . | . Garrison . | . Intercept . | . Searches Triggered . | . Construction Impeded . | . Haulers Reinforced . | . Active Scanning Responses . | . Cargo Convoy Interrupts . | . Stealth | -11 --------- Run | Yrd Distress Signals . | . Communications Jammed . | . Distress Signals . | . Times Spotted 18 | 18 Peak Tracking Total 20 | 20 Tactical Retreats 2 | 2 Traps | -11 ------- Run | Yrd Traps Triggered . | . Indirectly . | . Trap Hack Attempts . | . Triggered . | . Disarmed . | . Reprogrammed . | . Reused . | . Traps Extracted . | . Installed . | . Triggered . | . Machines | -11 ---------- Run | Yrd Machines Disabled . | . Max in Single Turn . | . Machines Repaired . | . Machines Dismantled . | . Machines Sabotaged . | . Overloaded Fab Kills . | . Hacking | -11 --------- Run | Yrd Machines Accessed . | . Terminals . | . Fabricators . | . Repair Stations . | . Recycling Units . | . Scanalyzers . | . Garrison Access . | . Total Hacks . | . Successful . | . Failed . | . Catastrophic . | . Database Lockouts . | . Manual . | . Terminals . | . Fabricators . | . Repair Stations . | . Recycling Units . | . Scanalyzers . | . Garrison Access . | . Terminal Hacks . | . Fabricator Hacks . | . Repair Station Hacks . | . Recycling Unit Hacks . | . Scanalyzer . | . Garrison Access Hacks . | . Unauthorized Hacks . | . Terminals . | . Fabricators . | . Repair Stations . | . Recycling Units . | . Scanalyzers . | . Garrison Access . | . Data Cores Recovered . | . Used . | . Hacking Detections . | . Full Trace Events . | . Feedback Events . | . Feedback Blocked . | . Robot Schematics Acquired . | . Robots Built . | . Authchips . | . Time . | . Total Robot Build Rating . | . Part Schematics Acquired . | . Parts Built . | . Authchips . | . Time . | . Total Part Build Rating . | . Part Studies Acquired . | . Parts Repaired . | . Time . | . Parts Recycled . | . Recycled Matter . | . Retrieved Matter . | . Retrieved Components . | . Parts Scanalyzed . | . Part Schematics Acquired . | . Parts Damaged . | . Bothacking | -11 ------------ Run | Yrd Used RIF Installer . | . Robots Hacked . | . Non-combat . | . Combat . | . Robot Hacks Applied . | . Relay Couplers Released . | . Fabnet Peak Effective % . | . Robots Rewired . | . Allies Hacked . | . Hacks Repelled . | . Allies | -11 -------- Run | Yrd Total Allies . | . Largest Group . | . Highest-Rated Group . | . Highest-Rated Ally . | . Total Orders . | . Ally Attacks . | . Total Damage . | . Kills . | . Allies Corrupted . | . Allies Melted . | . Intel | -11 ------- Run | Yrd Active Infowar (turns) 2305 | 2305 Seismic 2305 | 2305 Robot Analysis Total . | . Derelict Logs Recovered . | . Drone Launches . | . Drone Recoveries . | . Exploration | -11 ------------- Run | Yrd Turns Passed 2435 | 2435 Spaces Moved 697 | 697 Core 24 | 24 Treads . | . Legs 673 | 673 Wheels . | . Hover . | . Flight . | . Fastest Speed 50 | 50 Average Speed 118 | 118 Slowest Speed 200 | 200 Overloaded Moves . | . Propulsion Burnouts . | . Robots Hopped . | . Potential Cave-ins . | . Cave-ins Triggered . | . Exploration Rate (%) 29 | 29 Regions Visited . Branch Regions . Pre-discovered Areas . | . Known Exits Taken . | . Unknown Exits Taken . | . Scrap Searched . | . Spaces Dug . | . Terrain Destroyed . | . Melee . | . Projectile . | . AOE . | . Terrain Rammed . | . Walls Destroyed . | . Machines Disabled . | . Actions | -11 --------- Run | Yrd Total 2272 | 2272 Wait 1551 | 1551 Move 697 | 697 Hop . | . Pick Up 2 | 2 Fast Attach 6 | 6 Attach 1 | 1 Detach . | . Swap . | . Drop . | . Fire 14 | 14 Melee . | . Ram . | . Kick 1 | 1 Crush . | . Escape Stasis . | . Rewire . | . Trap . | . Miscellaneous . | . Route ------- -11/Scrapyard (discovered 1 exit: [*Mat]) History --------- Turn | Location | Event 17 | -11/Scrapyard | Discovered new exit (range 15) 2372 | -11/Scrapyard | Assembled infested the area 2430 | -11/Scrapyard | Core integrity fell below 50% 2435 | -11/Scrapyard | Core integrity fell below 20% 2436 | -11/Scrapyard | Destroyed by as-54047 with Assembled Heavy Rifle Last Messages --------------- 02338_ K-01 Serf collects debris. 02341_ T-07 Excavator is excavating. 02345_ K-01 Serf collects debris. 02345_ T-07 Excavator is excavating. 02349_ K-01 Serf collects debris. 02362_ T-07 Excavator is excavating. 02372_ ALERT: Infestation in the scrapyard, dispatching Demolisher response squad. 02372_ T-07 Excavator destroyed. 02374_ K-01 Serf collects debris. 02383_ K-01 Serf destroyed. 02388_ Lgt. Ion Engine destroyed. 02410_ as-18225 sneak attacks. 02410_ R-06 Scavenger destroyed. 02416_ Aluminum Leg destroyed. 02417_ EM Pulse Gun destroyed. 02423_ Sml. Laser destroyed. 02424_ Seismic Detector destroyed. 02426_ Critical hit (Destroy). 02426_ Aluminum Leg destroyed. Map ----- +----------------------------------------------------+ | # ###???????# # #????????????????? | | # # #???????# # #????????????????? | | #???????# # #????????????????? | | # # #???????# # #????????????????? | | ## # ###???????# # #????????????????? | | ?###### ##????????# # #????????????????? | | ???### ########## ### #######???#######??????? | | ???# % ########### #??????? | | ???# ## #####???? | | ???### ############## ########### # #???? | | ?????## ###????????????# ########### # #???? | | ?????# #???########### # ## # #???? | | ?????#####???# #aa# ## # #???? | | ?????????????# # # ## # #???? | | ?????????????# # # ## # #???? | | ?????????????# # # ## #### ####??? | | ?????????????# # # #??? | | ?????????????# =! ## #??? | | ?????????????# #%=# ## ##### #??? | | ?????????????# #**# ## #???# #??? | | ?????????????########### ########### #???# #??? | | ???????##########???# #??????# #???# #??? | | ???????# % #???# #?????## ##??# #??? | | ???????# #???# = ####### #??# #??? | | ?????### = ##### a % #?## ##?? | | ?????# = = | = @ #?# ### | | ?????# ! ### ### #?# | | ?????### [##### < ## =######?# | | ???????# =#???# ## #??????# ### | | ???????# #???################??????###### | | ???######## #######???????????????????????????# | | ???# # ## #???????????????????????????# | | ???# # # #???????????????????????????# | | ???# #???????????????????????????# | | ???# # # ##???????????????????????????## | | ???# #### #?????????????????????????????## | | ???## #??## #??????????????????????????????? | | ????#######????####??????????????????????????????? | | ?????????????????????????????????????????????????? | | ?????????????????????????????????????????????????? | | ?????????????????????????????????????????????????? | | ?????????????????????????????????????????????????? | | ?????????????????????????????????????????????????? | | ?????????????????????????????????????????????????? | | ?????????????????????????????????????????????????? | | ?????????????????????????????????????????????????? | | ?????????????????????????????????????????????????? | | ?????????????????????????????????????????????????? | | ?????????????????????????????????????????????????? | | ?????????????????????????????????????????????????? | +----------------------------------------------------+ Best States ------------- Heat Dissipation 25 Energy Generation 10 Energy Capacity 125 Matter Stores 300 Matter Capacity 300 Sight Range 16 Terrain Scan Density 10 Evasion (%) 55 Item Schematics ----------------- None Robot Schematics ------------------ None Fabricated ------------ Nothing Repaired ---------- Nothing Studied --------- None Alien Tech Used ----------------- None Achievements -------------- None Challenges ------------ None Game ------ Seed DeepCouplerAssimilator Manual? 0 Play Time 00:14:18 Cumulative 70.2 hours Start 2026.07.21 @ 23:55:00 End 2026.07.22 @ 00:02:32 Sessions 0 Manual Loads 0 Difficulty Rogue Special Mode None Game No. 250 Rogue 250 Adventurer 0 Explorer 0 Win Type - Total 0 Types 0/0/0/0/0/0/0/0/0/0 Lore% 34 Gallery% 22 Achievement% 19 Wizard Run 0 Options --------- Layout 0 ASCII 1 Keyboard 1 Movement Numpad Keybinds 1 Fullscreen 1 Font 18/X11 Map View 76x50 Zoom Use 0% Tactical HUD 1 Map Filters NONE Filters NONE Steam 1 RUN: 56de8f70-998e-474a-ad18-259472dc4636